[Event "*** Titled Tuesday Blitz"]
[Site "Chess.com"]
[Date "2018.11.06"]
[Round "7"]
[White "Zq1"]
[Black "pulvettd"]
[Result "1-0"]
[WhiteElo "2505"]
[BlackElo "2509"]
[TimeControl "180+2"]
[EndTime "14:35:50 PST"]
[Termination "Zq1 won by checkmate"]

1. Nf3 {[%clk 0:03:01.9]} 1... c5 {[%clk 0:02:57.2]} 2. c4 {[%clk 0:03:02.4]}
2... b6 {[%clk 0:02:55.4]} 3. d4 {[%clk 0:03:03.2]} 3... cxd4 {[%clk 0:02:55.5]}
4. Nxd4 {[%clk 0:03:04.3]} 4... Bb7 {[%clk 0:02:57.1]} 5. Nc3 {[%clk 0:03:05.5]}
5... e6 {[%clk 0:02:57.1]} 6. e4 {[%clk 0:03:01.7]} 6... a6 {[%clk 0:02:54.8]}
7. f3 {[%clk 0:03:01.9]} 7... Nc6 {[%clk 0:02:51.2]} 8. Be3 {[%clk 0:03:02.4]}
8... Bc5 {[%clk 0:02:49.6]} 9. Qd2 {[%clk 0:02:59.9]} 9... Qf6 {[%clk
0:02:45.5]} 10. Nb3 {[%clk 0:02:52.6]} 10... d6 {[%clk 0:02:32.6]} 11. Be2
{[%clk 0:02:51.4]} 11... Nge7 {[%clk 0:02:27.2]} 12. O-O {[%clk 0:02:51.5]}
12... h6 {[%clk 0:02:21.3]} 13. Nxc5 {[%clk 0:02:30.4]} 13... dxc5 {[%clk
0:02:19.7]} 14. Qd6 {[%clk 0:02:29.9]} 14... O-O {[%clk 0:02:05.1]} 15. Qc7
{[%clk 0:02:28]} 15... Rab8 {[%clk 0:02:04.9]} 16. Qxb6 {[%clk 0:02:25.1]} 16...
Nd4 {[%clk 0:02:01.9]} 17. Qxc5 {[%clk 0:02:12.8]} 17... Nc2 {[%clk 0:02:02.6]}
18. Rac1 {[%clk 0:02:12.6]} 18... Rfc8 {[%clk 0:01:59.4]} 19. e5 {[%clk
0:01:37.4]} 19... Rxc5 {[%clk 0:01:36.4]} 20. exf6 {[%clk 0:01:38]} 20... Nxe3
{[%clk 0:01:38.3]} 21. fxe7 {[%clk 0:01:37.4]} 21... Nxf1 {[%clk 0:01:38.7]} 22.
Bxf1 {[%clk 0:01:38.2]} 22... Rc7 {[%clk 0:01:32.8]} 23. b4 {[%clk 0:01:35]}
23... Rxe7 {[%clk 0:01:32.4]} 24. c5 {[%clk 0:01:36.1]} 24... Rd7 {[%clk
0:01:30.3]} 25. Rc2 {[%clk 0:01:36.1]} 25... Rd4 {[%clk 0:01:30.3]} 26. a3
{[%clk 0:01:36.3]} 26... Rc8 {[%clk 0:01:26.9]} 27. Kf2 {[%clk 0:01:33.6]} 27...
Kf8 {[%clk 0:01:28]} 28. Ke3 {[%clk 0:01:33.9]} 28... e5 {[%clk 0:01:29.5]} 29.
Ne4 {[%clk 0:01:29.3]} 29... f5 {[%clk 0:01:22]} 30. Nd2 {[%clk 0:01:19.5]}
30... Ke7 {[%clk 0:01:15.8]} 31. Nc4 {[%clk 0:01:15.7]} 31... Kf6 {[%clk
0:01:12.9]} 32. Na5 {[%clk 0:01:14.5]} 32... f4+ {[%clk 0:01:09.6]} 33. Kf2
{[%clk 0:01:14.5]} 33... e4 {[%clk 0:00:49.3]} 34. Nxb7 {[%clk 0:01:08.2]} 34...
e3+ {[%clk 0:00:51.2]} 35. Ke1 {[%clk 0:01:05.5]} 35... Rc7 {[%clk 0:00:49.6]}
36. Bxa6 {[%clk 0:00:58.4]} 36... g5 {[%clk 0:00:45.1]} 37. c6 {[%clk
0:00:56.5]} 37... Ke5 {[%clk 0:00:40.8]} 38. b5 {[%clk 0:00:53.7]} 38... Rb4
{[%clk 0:00:36.4]} 39. axb4 {[%clk 0:00:53.1]} 39... Kd4 {[%clk 0:00:36.8]} 40.
b6 {[%clk 0:00:51.7]} 40... Re7 {[%clk 0:00:36]} 41. c7 {[%clk 0:00:51.2]} 41...
g4 {[%clk 0:00:35]} 42. c8=Q {[%clk 0:00:50.9]} 42... gxf3 {[%clk 0:00:36.9]}
43. Qc5+ {[%clk 0:00:49.5]} 43... Ke4 {[%clk 0:00:36]} 44. Nd6# {[%clk
0:00:50.2]} 1-0

[Event "*** Titled Tuesday Blitz"]
[Site "Chess.com"]
[Date "2018.11.06"]
[Round "7"]
[White "Alohamora11"]
[Black "Orest_Vovk"]
[Result "1-0"]
[WhiteElo "2330"]
[BlackElo "2404"]
[TimeControl "180+2"]
[EndTime "14:35:59 PST"]
[Termination "Alohamora11 won by resignation"]

1. e4 {[%clk 0:03:01.9]} 1... e5 {[%clk 0:02:56.6]} 2. Nf3 {[%clk 0:03:02.1]}
2... d6 {[%clk 0:02:56.2]} 3. d4 {[%clk 0:03:02]} 3... exd4 {[%clk 0:02:58.1]}
4. Nxd4 {[%clk 0:03:02.1]} 4... Be7 {[%clk 0:03:00]} 5. Nc3 {[%clk 0:03:03.7]}
5... Bf6 {[%clk 0:03:01]} 6. Nd5 {[%clk 0:02:56.2]} 6... c6 {[%clk 0:02:54.6]}
7. Nxf6+ {[%clk 0:02:55.8]} 7... Qxf6 {[%clk 0:02:56.5]} 8. Be3 {[%clk
0:02:40.6]} 8... Ne7 {[%clk 0:02:55.8]} 9. Bd3 {[%clk 0:02:33.5]} 9... O-O
{[%clk 0:02:55.9]} 10. O-O {[%clk 0:02:33.6]} 10... Nd7 {[%clk 0:02:54.6]} 11.
f4 {[%clk 0:02:21.5]} 11... Nc5 {[%clk 0:02:55.1]} 12. b4 {[%clk 0:01:34.6]}
12... Nxd3 {[%clk 0:02:47]} 13. Qxd3 {[%clk 0:01:30.9]} 13... a5 {[%clk
0:02:37]} 14. bxa5 {[%clk 0:01:17.4]} 14... Rxa5 {[%clk 0:02:38.9]} 15. Nb3
{[%clk 0:01:18.2]} 15... Rh5 {[%clk 0:02:36]} 16. Bd4 {[%clk 0:01:16.1]} 16...
Qh4 {[%clk 0:02:35.3]} 17. h3 {[%clk 0:01:17.1]} 17... Ng6 {[%clk 0:02:28]} 18.
f5 {[%clk 0:01:13.5]} 18... Ne5 {[%clk 0:02:12.6]} 19. Bxe5 {[%clk 0:00:55]}
19... dxe5 {[%clk 0:02:14.5]} 20. Nd2 {[%clk 0:00:56.2]} 20... Rd8 {[%clk
0:02:10.3]} 21. Qe3 {[%clk 0:00:52.9]} 21... b6 {[%clk 0:02:05.9]} 22. Rad1
{[%clk 0:00:33.1]} 22... Ba6 {[%clk 0:01:47.4]} 23. Nf3 {[%clk 0:00:16.2]} 23...
Rxd1 {[%clk 0:01:40]} 24. Rxd1 {[%clk 0:00:17.1]} 24... Qe7 {[%clk 0:01:34.5]}
25. Qxb6 {[%clk 0:00:18.1]} 25... h6 {[%clk 0:01:31.7]} 26. Qxa6 {[%clk
0:00:18.7]} 26... Qc5+ {[%clk 0:01:32.5]} 27. Kh2 {[%clk 0:00:17.7]} 27... Qe3
{[%clk 0:01:24.7]} 28. Qd3 {[%clk 0:00:18.2]} 28... Qf4+ {[%clk 0:01:20]} 29.
Kg1 {[%clk 0:00:19.3]} 29... Kh7 {[%clk 0:01:15.1]} 30. Kf2 {[%clk 0:00:16.9]}
30... Rg5 {[%clk 0:01:12.9]} 31. g4 {[%clk 0:00:10.4]} 31... h5 {[%clk
0:00:55.1]} 32. Qe3 {[%clk 0:00:11.4]} 32... Rxg4 {[%clk 0:00:55.2]} 33. hxg4
{[%clk 0:00:11.3]} 33... Qxg4 {[%clk 0:00:55]} 34. Rh1 {[%clk 0:00:08.7]} 34...
g5 {[%clk 0:00:48.4]} 35. Qxg5 {[%clk 0:00:07.8]} 35... Qxg5 {[%clk 0:00:49.5]}
36. Nxg5+ {[%clk 0:00:08.6]} 36... Kg7 {[%clk 0:00:49.9]} 37. Rxh5 {[%clk
0:00:08.9]} 37... Kf6 {[%clk 0:00:51.8]} 38. Nf3 {[%clk 0:00:09.8]} 38... c5
{[%clk 0:00:53.1]} 39. Rh6+ {[%clk 0:00:11.2]} 1-0

[Event "*** Titled Tuesday Blitz"]
[Site "Chess.com"]
[Date "2018.11.06"]
[Round "7"]
[White "kharov2001"]
[Black "Caterpiller35"]
[Result "1-0"]
[WhiteElo "2214"]
[BlackElo "2261"]
[TimeControl "180+2"]
[EndTime "14:36:07 PST"]
[Termination "kharov2001 won on time"]

1. e4 {[%clk 0:03:01.9]} 1... c5 {[%clk 0:03:00.1]} 2. Nf3 {[%clk 0:03:02.7]}
2... g6 {[%clk 0:03:01.3]} 3. d4 {[%clk 0:03:01.3]} 3... cxd4 {[%clk 0:03:03.2]}
4. Qxd4 {[%clk 0:03:03.2]} 4... Nf6 {[%clk 0:03:04.1]} 5. Nc3 {[%clk 0:03:03.6]}
5... Nc6 {[%clk 0:03:04.1]} 6. Qa4 {[%clk 0:03:04.9]} 6... d6 {[%clk 0:03:04.1]}
7. e5 {[%clk 0:03:04.7]} 7... dxe5 {[%clk 0:03:06]} 8. Nxe5 {[%clk 0:03:05.8]}
8... Bg7 {[%clk 0:03:06.8]} 9. Bb5 {[%clk 0:03:05.1]} 9... O-O {[%clk
0:03:07.5]} 10. Nxc6 {[%clk 0:03:06.4]} 10... bxc6 {[%clk 0:03:08.5]} 11. Bxc6
{[%clk 0:03:08.3]} 11... Rb8 {[%clk 0:03:09.5]} 12. O-O {[%clk 0:03:08.1]} 12...
Bf5 {[%clk 0:03:09.4]} 13. Re1 {[%clk 0:02:48.4]} 13... Qb6 {[%clk 0:03:03.9]}
14. Bf3 {[%clk 0:02:31.4]} 14... h5 {[%clk 0:02:10.3]} 15. Rb1 {[%clk
0:02:28.4]} 15... Qb4 {[%clk 0:01:54.8]} 16. Qxb4 {[%clk 0:02:26.2]} 16... Rxb4
{[%clk 0:01:56.7]} 17. Re2 {[%clk 0:02:22.1]} 17... Bg4 {[%clk 0:01:53.7]} 18.
Bxg4 {[%clk 0:02:16.1]} 18... hxg4 {[%clk 0:01:44.4]} 19. a3 {[%clk 0:02:13.7]}
19... Rb7 {[%clk 0:01:43.5]} 20. b3 {[%clk 0:02:05.9]} 20... Rc8 {[%clk
0:01:42.7]} 21. Nd1 {[%clk 0:02:02.4]} 21... e6 {[%clk 0:01:37.9]} 22. Bg5
{[%clk 0:01:55.5]} 22... Nd5 {[%clk 0:01:38.6]} 23. c4 {[%clk 0:01:54.6]} 23...
Rxc4 {[%clk 0:01:39.3]} 24. b4 {[%clk 0:01:38.8]} 24... a5 {[%clk 0:01:38.7]}
25. Ne3 {[%clk 0:01:31.5]} 25... Nxe3 {[%clk 0:01:38.2]} 26. Rxe3 {[%clk
0:01:32.9]} 26... axb4 {[%clk 0:01:38.5]} 27. Reb3 {[%clk 0:01:33.9]} 27... Rb5
{[%clk 0:01:10.6]} 28. Be3 {[%clk 0:01:33.3]} 28... bxa3 {[%clk 0:00:50.8]} 29.
Rxb5 {[%clk 0:01:33.7]} 29... a2 {[%clk 0:00:51.9]} 30. Kf1 {[%clk 0:01:26.4]}
30... axb1=Q+ {[%clk 0:00:44.9]} 31. Rxb1 {[%clk 0:01:26.4]} 31... Rc2 {[%clk
0:00:46.8]} 32. Rb4 {[%clk 0:01:22.6]} 32... f5 {[%clk 0:00:47.2]} 33. Rb7
{[%clk 0:01:22.7]} 33... e5 {[%clk 0:00:47.1]} 34. Ke1 {[%clk 0:01:18]} 34... f4
{[%clk 0:00:47.1]} 35. Bd2 {[%clk 0:01:18.7]} 35... Bh6 {[%clk 0:00:28.6]} 36.
Kd1 {[%clk 0:01:13.4]} 36... f3 {[%clk 0:00:13.3]} 37. Kxc2 {[%clk 0:01:11.1]}
37... fxg2 {[%clk 0:00:06.9]} 38. Rb1 {[%clk 0:01:10.9]} 1-0

[Event "*** Titled Tuesday Blitz"]
[Site "Chess.com"]
[Date "2018.11.06"]
[Round "7"]
[White "GCamachoMartinez"]
[Black "MatyChess1"]
[Result "0-1"]
[WhiteElo "2320"]
[BlackElo "2522"]
[TimeControl "180+2"]
[EndTime "14:36:10 PST"]
[Termination "MatyChess1 won by resignation"]

1. d4 {[%clk 0:03:01.9]} 1... Nf6 {[%clk 0:02:56]} 2. c4 {[%clk 0:03:01.8]} 2...
e6 {[%clk 0:02:57]} 3. Nc3 {[%clk 0:03:01.1]} 3... Bb4 {[%clk 0:02:57.4]} 4. Nf3
{[%clk 0:03:02]} 4... d5 {[%clk 0:02:44]} 5. cxd5 {[%clk 0:02:55.1]} 5... exd5
{[%clk 0:02:45]} 6. Bg5 {[%clk 0:02:55.5]} 6... Qd6 {[%clk 0:02:43.2]} 7. Bxf6
{[%clk 0:02:41.1]} 7... Qxf6 {[%clk 0:02:43.9]} 8. Qb3 {[%clk 0:02:42]} 8... Qb6
{[%clk 0:02:40.6]} 9. e3 {[%clk 0:02:32.5]} 9... c6 {[%clk 0:02:37.7]} 10. Bd3
{[%clk 0:02:31.6]} 10... O-O {[%clk 0:02:38.2]} 11. O-O {[%clk 0:02:31.7]} 11...
Nd7 {[%clk 0:02:38]} 12. a3 {[%clk 0:02:16.5]} 12... Bd6 {[%clk 0:02:31.8]} 13.
Qc2 {[%clk 0:02:15.7]} 13... Nf6 {[%clk 0:02:31.9]} 14. b4 {[%clk 0:02:15.6]}
14... a6 {[%clk 0:02:28.8]} 15. Na4 {[%clk 0:02:06.9]} 15... Qc7 {[%clk
0:02:29.3]} 16. h3 {[%clk 0:02:06.8]} 16... Re8 {[%clk 0:02:20]} 17. Nc5 {[%clk
0:02:06.8]} 17... b6 {[%clk 0:02:13.6]} 18. Nb3 {[%clk 0:01:56.2]} 18... Ne4
{[%clk 0:02:11.9]} 19. Rfc1 {[%clk 0:01:51.3]} 19... Bd7 {[%clk 0:02:11]} 20.
Nbd2 {[%clk 0:01:50.2]} 20... f5 {[%clk 0:02:09.1]} 21. Rab1 {[%clk 0:01:51.2]}
21... Qd8 {[%clk 0:01:48.3]} 22. a4 {[%clk 0:01:41.9]} 22... Qe7 {[%clk
0:01:24.9]} 23. Qb3 {[%clk 0:01:42.6]} 23... Nxf2 {[%clk 0:00:56.4]} 24. Bxf5
{[%clk 0:00:41.5]} 24... Bxf5 {[%clk 0:00:49.6]} 25. Kxf2 {[%clk 0:00:42.5]}
25... Bxb1 {[%clk 0:00:50.1]} 26. Rxb1 {[%clk 0:00:44.4]} 26... a5 {[%clk
0:00:43]} 27. b5 {[%clk 0:00:44.4]} 27... c5 {[%clk 0:00:38.3]} 28. Qxd5+ {[%clk
0:00:43.8]} 28... Kh8 {[%clk 0:00:39.6]} 29. Qg5 {[%clk 0:00:37.7]} 29... Qf7
{[%clk 0:00:33.5]} 30. Kg1 {[%clk 0:00:30]} 30... h6 {[%clk 0:00:33]} 31. Qg4
{[%clk 0:00:28.6]} 31... Rxe3 {[%clk 0:00:32.4]} 32. Nc4 {[%clk 0:00:26.6]}
32... Qxc4 {[%clk 0:00:28]} 33. dxc5 {[%clk 0:00:21.2]} 33... Qxg4 {[%clk
0:00:27.9]} 34. hxg4 {[%clk 0:00:22.3]} 34... Bxc5 {[%clk 0:00:29.8]} 35. Kh2
{[%clk 0:00:20.3]} 35... Rae8 {[%clk 0:00:29.5]} 36. g5 {[%clk 0:00:20.7]} 36...
hxg5 {[%clk 0:00:27.9]} 37. Nxg5 {[%clk 0:00:21.7]} 37... Kg8 {[%clk 0:00:28.1]}
38. Nf3 {[%clk 0:00:22.6]} 38... R8e4 {[%clk 0:00:28.3]} 0-1

[Event "*** Titled Tuesday Blitz"]
[Site "Chess.com"]
[Date "2018.11.06"]
[Round "7"]
[White "evgenysharapov"]
[Black "Zarikovs1999"]
[Result "1-0"]
[WhiteElo "2407"]
[BlackElo "2341"]
[TimeControl "180+2"]
[EndTime "14:36:11 PST"]
[Termination "evgenysharapov won by resignation"]

1. c4 {[%clk 0:03:01.9]} 1... Nf6 {[%clk 0:02:56.1]} 2. Nc3 {[%clk 0:03:02.2]}
2... e6 {[%clk 0:02:57.5]} 3. e4 {[%clk 0:03:01.8]} 3... d5 {[%clk 0:02:56.2]}
4. e5 {[%clk 0:03:02.3]} 4... d4 {[%clk 0:02:57.7]} 5. exf6 {[%clk 0:03:02.2]}
5... dxc3 {[%clk 0:02:59.1]} 6. bxc3 {[%clk 0:03:02.9]} 6... Qxf6 {[%clk
0:03:00.4]} 7. Nf3 {[%clk 0:03:03.7]} 7... b6 {[%clk 0:02:59.7]} 8. d4 {[%clk
0:03:04.1]} 8... Bb7 {[%clk 0:03:00.9]} 9. Be2 {[%clk 0:03:00.8]} 9... c5 {[%clk
0:02:58.3]} 10. O-O {[%clk 0:03:00.6]} 10... h6 {[%clk 0:02:59.2]} 11. Ne5
{[%clk 0:02:41.6]} 11... Bd6 {[%clk 0:02:43.6]} 12. Qa4+ {[%clk 0:02:37.1]}
12... Ke7 {[%clk 0:02:45]} 13. f4 {[%clk 0:02:33]} 13... Rc8 {[%clk 0:02:42.9]}
14. Bf3 {[%clk 0:02:07.8]} 14... Bxf3 {[%clk 0:02:33.8]} 15. Rxf3 {[%clk
0:02:08.2]} 15... Bxe5 {[%clk 0:02:31.9]} 16. fxe5 {[%clk 0:02:03.1]} 16... Qg6
{[%clk 0:02:32.5]} 17. Be3 {[%clk 0:01:44.2]} 17... Nd7 {[%clk 0:02:30.3]} 18.
Raf1 {[%clk 0:01:42.4]} 18... f5 {[%clk 0:02:20.2]} 19. exf6+ {[%clk 0:01:40.7]}
19... gxf6 {[%clk 0:02:22.1]} 20. Rg3 {[%clk 0:01:29.3]} 20... Qh7 {[%clk
0:02:12.6]} 21. d5 {[%clk 0:01:18.4]} 21... e5 {[%clk 0:01:50.8]} 22. Rh3 {[%clk
0:01:14]} 22... h5 {[%clk 0:01:47.2]} 23. Rhf3 {[%clk 0:01:07.9]} 23... Qe4
{[%clk 0:01:41.2]} 24. Bg5 {[%clk 0:00:57.6]} 24... Qg6 {[%clk 0:01:06.7]} 25.
Bxf6+ {[%clk 0:00:56.2]} 25... Nxf6 {[%clk 0:01:07.5]} 26. Rxf6 {[%clk 0:00:57]}
26... Qxf6 {[%clk 0:01:07.1]} 27. Rxf6 {[%clk 0:00:57.2]} 27... Kxf6 {[%clk
0:01:09]} 28. Qd7 {[%clk 0:00:55.6]} 28... Re8 {[%clk 0:01:08.8]} 29. Qd6+
{[%clk 0:00:49.7]} 29... Kf5 {[%clk 0:01:06.5]} 30. Qd7+ {[%clk 0:00:44.2]}
30... Kf6 {[%clk 0:01:04.8]} 31. Kf2 {[%clk 0:00:32.9]} 31... e4 {[%clk
0:00:59.4]} 32. Ke3 {[%clk 0:00:33.2]} 32... a6 {[%clk 0:00:54.1]} 33. Qd6+
{[%clk 0:00:32.5]} 33... Kg5 {[%clk 0:00:53.2]} 34. Qxb6 {[%clk 0:00:30.3]}
34... Rab8 {[%clk 0:00:51.8]} 35. Qxc5 {[%clk 0:00:30.8]} 35... Rb1 {[%clk
0:00:51.9]} 36. d6+ {[%clk 0:00:31.2]} 36... Kg6 {[%clk 0:00:48.3]} 37. d7
{[%clk 0:00:29.7]} 37... Rd8 {[%clk 0:00:46]} 38. Qe7 {[%clk 0:00:29.1]} 38...
Re1+ {[%clk 0:00:41.4]} 39. Kd2 {[%clk 0:00:26.1]} 39... Rxd7+ {[%clk
0:00:32.4]} 40. Qxd7 {[%clk 0:00:25.5]} 40... Rd1+ {[%clk 0:00:34.3]} 41. Kxd1
{[%clk 0:00:26.1]} 1-0

[Event "*** Titled Tuesday Blitz"]
[Site "Chess.com"]
[Date "2018.11.06"]
[Round "7"]
[White "Makalexa"]
[Black "savinspm"]
[Result "0-1"]
[WhiteElo "2106"]
[BlackElo "2082"]
[TimeControl "180+2"]
[EndTime "14:36:12 PST"]
[Termination "savinspm won by resignation"]

1. e4 {[%clk 0:02:35.7]} 1... e5 {[%clk 0:02:59.9]} 2. Nf3 {[%clk 0:02:35.5]}
2... Nc6 {[%clk 0:03:00.9]} 3. Bb5 {[%clk 0:02:35.7]} 3... a6 {[%clk 0:03:01.6]}
4. Ba4 {[%clk 0:02:36.9]} 4... Nf6 {[%clk 0:03:02.9]} 5. O-O {[%clk 0:02:38.3]}
5... Be7 {[%clk 0:03:04.3]} 6. Re1 {[%clk 0:02:38.6]} 6... b5 {[%clk 0:03:05.6]}
7. Bb3 {[%clk 0:02:38.9]} 7... d6 {[%clk 0:03:07.2]} 8. a4 {[%clk 0:02:39.8]}
8... Bd7 {[%clk 0:03:03.5]} 9. c3 {[%clk 0:02:36.6]} 9... Na5 {[%clk 0:03:04.5]}
10. Ba2 {[%clk 0:02:36.5]} 10... bxa4 {[%clk 0:03:01.7]} 11. d4 {[%clk
0:02:37.2]} 11... exd4 {[%clk 0:02:59.1]} 12. cxd4 {[%clk 0:02:13.4]} 12... O-O
{[%clk 0:02:57.3]} 13. e5 {[%clk 0:02:14]} 13... dxe5 {[%clk 0:02:58.2]} 14.
dxe5 {[%clk 0:02:14.9]} 14... Ne8 {[%clk 0:02:56.4]} 15. Nc3 {[%clk 0:02:10.9]}
15... Nb3 {[%clk 0:02:57]} 16. Bxb3 {[%clk 0:02:05.1]} 16... axb3 {[%clk
0:02:57.8]} 17. Qxb3 {[%clk 0:02:04.6]} 17... Be6 {[%clk 0:02:59.4]} 18. Qc2
{[%clk 0:02:05.3]} 18... c6 {[%clk 0:02:58.9]} 19. Bf4 {[%clk 0:02:03.8]} 19...
Nc7 {[%clk 0:02:59.7]} 20. Bg3 {[%clk 0:01:56]} 20... Nd5 {[%clk 0:03:00.6]} 21.
Ne4 {[%clk 0:01:54.6]} 21... Qb6 {[%clk 0:02:54.5]} 22. Neg5 {[%clk 0:01:51.6]}
22... g6 {[%clk 0:02:46.3]} 23. Rac1 {[%clk 0:01:42.5]} 23... Bf5 {[%clk
0:02:41.6]} 24. Qxc6 {[%clk 0:01:41.5]} 24... Qxc6 {[%clk 0:02:42.7]} 25. Rxc6
{[%clk 0:01:40.9]} 25... Rfc8 {[%clk 0:02:41.7]} 26. Rec1 {[%clk 0:01:40.5]}
26... Rxc6 {[%clk 0:02:39]} 27. Rxc6 {[%clk 0:01:42.4]} 27... h6 {[%clk
0:02:37.3]} 28. Nh3 {[%clk 0:01:30.2]} 28... Bxh3 {[%clk 0:02:29.6]} 29. gxh3
{[%clk 0:01:30.1]} 29... Nb4 {[%clk 0:02:29.5]} 30. Rb6 {[%clk 0:01:28.8]} 30...
Rc8 {[%clk 0:02:26.5]} 31. e6 {[%clk 0:01:25.6]} 31... Rc1+ {[%clk 0:02:14.3]}
32. Kg2 {[%clk 0:01:25.7]} 32... Rc2 {[%clk 0:02:15.5]} 33. exf7+ {[%clk
0:01:23.7]} 33... Kxf7 {[%clk 0:02:16.4]} 34. Ne5+ {[%clk 0:01:24.7]} 34... Kg7
{[%clk 0:02:13.6]} 35. Rb7 {[%clk 0:01:23.8]} 35... Nd5 {[%clk 0:02:08.1]} 36.
Ng4 {[%clk 0:01:04.5]} 36... h5 {[%clk 0:02:05.4]} 37. Be5+ {[%clk 0:01:04.8]}
37... Kf8 {[%clk 0:02:01.1]} 38. Nh6 {[%clk 0:00:54.1]} 38... Bc5 {[%clk
0:02:00.3]} 39. Rf7+ {[%clk 0:00:27.5]} 39... Ke8 {[%clk 0:02:00.7]} 40. Rf3
{[%clk 0:00:23.4]} 40... Ne7 {[%clk 0:01:45.9]} 41. Nf7 {[%clk 0:00:18.8]} 41...
Nf5 {[%clk 0:01:44.5]} 42. Ng5 {[%clk 0:00:10.5]} 42... Nh4+ {[%clk 0:01:45.1]}
43. Kg3 {[%clk 0:00:11.7]} 43... Nxf3 {[%clk 0:01:45.7]} 44. Kxf3 {[%clk
0:00:12.3]} 44... Rxf2+ {[%clk 0:01:45.3]} 45. Ke4 {[%clk 0:00:13.8]} 45... Be7
{[%clk 0:01:36.3]} 46. Ne6 {[%clk 0:00:12.9]} 46... Re2+ {[%clk 0:01:34]} 47.
Kd5 {[%clk 0:00:13]} 47... Kd7 {[%clk 0:01:29.5]} 48. Nd4 {[%clk 0:00:11.1]}
48... Rxb2 {[%clk 0:01:26.8]} 49. Nc6 {[%clk 0:00:11.6]} 49... Rb5+ {[%clk
0:01:27.2]} 0-1

[Event "*** Titled Tuesday Blitz"]
[Site "Chess.com"]
[Date "2018.11.06"]
[Round "7"]
[White "Blagorod"]
[Black "aRk_iN"]
[Result "1-0"]
[WhiteElo "2084"]
[BlackElo "2118"]
[TimeControl "180+2"]
[EndTime "14:36:13 PST"]
[Termination "Blagorod won by resignation"]

1. e4 {[%clk 0:03:01.9]} 1... c6 {[%clk 0:03:00.6]} 2. d4 {[%clk 0:03:02.3]}
2... d5 {[%clk 0:03:01.7]} 3. exd5 {[%clk 0:03:03.8]} 3... cxd5 {[%clk
0:03:02.6]} 4. Bd3 {[%clk 0:03:05]} 4... Nc6 {[%clk 0:03:02.8]} 5. c3 {[%clk
0:03:06.6]} 5... Nf6 {[%clk 0:03:01.8]} 6. Ne2 {[%clk 0:03:05.8]} 6... g6 {[%clk
0:02:46.6]} 7. Bf4 {[%clk 0:02:53]} 7... Bf5 {[%clk 0:02:46.9]} 8. Bxf5 {[%clk
0:02:49.6]} 8... gxf5 {[%clk 0:02:48.8]} 9. Qb3 {[%clk 0:02:50.4]} 9... Qd7
{[%clk 0:02:38.2]} 10. Nd2 {[%clk 0:02:49.4]} 10... Rg8 {[%clk 0:02:39.1]} 11.
Ng3 {[%clk 0:02:39.6]} 11... e6 {[%clk 0:02:39.3]} 12. Nf3 {[%clk 0:02:37.6]}
12... O-O-O {[%clk 0:02:32.3]} 13. O-O {[%clk 0:02:35.8]} 13... Bd6 {[%clk
0:02:24.5]} 14. Ne5 {[%clk 0:02:11.7]} 14... Qc7 {[%clk 0:02:18.4]} 15. Rfe1
{[%clk 0:02:00]} 15... Ne4 {[%clk 0:02:17.6]} 16. Nxc6 {[%clk 0:01:36.1]} 16...
Qxc6 {[%clk 0:02:18.6]} 17. Bxd6 {[%clk 0:01:33.9]} 17... Qxd6 {[%clk
0:02:10.5]} 18. Nxe4 {[%clk 0:01:17.9]} 18... fxe4 {[%clk 0:02:09.5]} 19. c4
{[%clk 0:01:19]} 19... f5 {[%clk 0:02:01.4]} 20. Rac1 {[%clk 0:01:17]} 20... Kb8
{[%clk 0:02:00.3]} 21. c5 {[%clk 0:01:16.1]} 21... Qc6 {[%clk 0:02:01.4]} 22.
Qe3 {[%clk 0:01:09.5]} 22... Rg4 {[%clk 0:01:50.7]} 23. h3 {[%clk 0:01:06]}
23... Rg7 {[%clk 0:01:41.3]} 24. b4 {[%clk 0:01:03.3]} 24... Rdg8 {[%clk
0:01:41.3]} 25. g3 {[%clk 0:01:04.4]} 25... h5 {[%clk 0:01:29.7]} 26. b5 {[%clk
0:00:53.6]} 26... Qc7 {[%clk 0:01:27.4]} 27. Kf1 {[%clk 0:00:48.1]} 27... h4
{[%clk 0:01:18.7]} 28. b6 {[%clk 0:00:48.8]} 28... Qc6 {[%clk 0:01:08.2]} 29.
Qf4+ {[%clk 0:00:48.4]} 29... Ka8 {[%clk 0:01:08.8]} 30. Qxh4 {[%clk 0:00:48.4]}
30... e3 {[%clk 0:00:46.1]} 31. Rxe3 {[%clk 0:00:46.1]} 31... Qb5+ {[%clk
0:00:23.8]} 32. Kg2 {[%clk 0:00:43.7]} 32... Qb2 {[%clk 0:00:24.6]} 33. Rce1
{[%clk 0:00:20.5]} 33... Qxa2 {[%clk 0:00:17.8]} 34. R1e2 {[%clk 0:00:21.7]}
34... Qc4 {[%clk 0:00:16.9]} 35. Rxe6 {[%clk 0:00:22.3]} 35... axb6 {[%clk
0:00:17.7]} 36. cxb6 {[%clk 0:00:22.5]} 36... Qc8 {[%clk 0:00:15.9]} 37. Ra2+
{[%clk 0:00:19.3]} 37... Kb8 {[%clk 0:00:17]} 38. Qf4+ {[%clk 0:00:20.8]} 1-0

[Event "*** Titled Tuesday Blitz"]
[Site "Chess.com"]
[Date "2018.11.06"]
[Round "7"]
[White "51616516516"]
[Black "gemarin"]
[Result "1-0"]
[WhiteElo "2263"]
[BlackElo "2075"]
[TimeControl "180+2"]
[EndTime "14:36:14 PST"]
[Termination "51616516516 won on time"]

1. d4 {[%clk 0:03:01.9]} 1... d5 {[%clk 0:02:58.9]} 2. c4 {[%clk 0:03:02.6]}
2... c6 {[%clk 0:02:59.9]} 3. Nc3 {[%clk 0:02:59.9]} 3... Nf6 {[%clk 0:03:00.8]}
4. Nf3 {[%clk 0:03:00.1]} 4... e6 {[%clk 0:03:00.5]} 5. Bg5 {[%clk 0:02:59.6]}
5... h6 {[%clk 0:02:47.1]} 6. Bxf6 {[%clk 0:02:55.9]} 6... Qxf6 {[%clk 0:02:47]}
7. e3 {[%clk 0:02:55.5]} 7... Nd7 {[%clk 0:02:40.8]} 8. Bd3 {[%clk 0:02:54.8]}
8... Qd8 {[%clk 0:02:39.9]} 9. O-O {[%clk 0:02:54.7]} 9... Be7 {[%clk
0:02:35.3]} 10. b3 {[%clk 0:02:41.1]} 10... O-O {[%clk 0:02:31.4]} 11. Rc1
{[%clk 0:02:42.1]} 11... Nf6 {[%clk 0:02:28]} 12. Qe2 {[%clk 0:02:39]} 12... b6
{[%clk 0:02:28.3]} 13. Rfd1 {[%clk 0:02:39.4]} 13... Bb7 {[%clk 0:02:28.8]} 14.
e4 {[%clk 0:02:33.8]} 14... dxe4 {[%clk 0:02:28.6]} 15. Nxe4 {[%clk 0:02:34.3]}
15... Qb8 {[%clk 0:02:28.3]} 16. Ne5 {[%clk 0:02:28.9]} 16... Rd8 {[%clk
0:02:20.4]} 17. Nxf6+ {[%clk 0:02:29.2]} 17... Bxf6 {[%clk 0:02:20.9]} 18. Qe4
{[%clk 0:02:30.1]} 18... Kf8 {[%clk 0:01:59.9]} 19. Nxc6 {[%clk 0:02:09.1]}
19... Bxc6 {[%clk 0:01:59]} 20. Qxc6 {[%clk 0:02:09.1]} 20... Bxd4 {[%clk
0:01:49.8]} 21. g3 {[%clk 0:01:41.4]} 21... Qe5 {[%clk 0:01:45.3]} 22. Qf3
{[%clk 0:01:34.9]} 22... Rac8 {[%clk 0:01:42.2]} 23. Be4 {[%clk 0:01:27.1]}
23... Bb2 {[%clk 0:01:37.1]} 24. Rc2 {[%clk 0:01:17.9]} 24... Ba3 {[%clk
0:01:09.5]} 25. Rcd2 {[%clk 0:01:13.2]} 25... Rxd2 {[%clk 0:00:51.6]} 26. Rxd2
{[%clk 0:01:15.1]} 26... Rc7 {[%clk 0:00:49.1]} 27. Rd8+ {[%clk 0:01:12.6]}
27... Ke7 {[%clk 0:00:49.3]} 28. Ra8 {[%clk 0:00:29.2]} 28... Qf6 {[%clk
0:00:17.2]} 29. Qd3 {[%clk 0:00:24.4]} 29... Rd7 {[%clk 0:00:17.5]} 30. Qe2
{[%clk 0:00:15.7]} 1-0